bitfinex/quotes_SOLUSD_20250226
["timestamp","ask_amount","ask_price","bid_price","bid_amount"]
[1740596074573,1.0,131.29,131.21,1.59943272]
[1740596074912,1.0,131.31,131.22,129.54]
[1740596075081,1.0,131.29,131.23,1.59897749]
[1740596075414,1.0,131.27,131.22,347.74]
[1740596075705,1.0,131.28,131.22,347.74]
[1740596076204,1.0,131.27,131.22,347.74]
[1740596076607,1.0,131.29,131.22,347.74]
[1740596076807,1.063,131.32,131.23,1.5992604]
[1740596077008,0.063,131.32,131.26,20.0]
[1740596077208,0.063,131.32,131.27,1.59858971]
[1740596077411,0.063,131.32,131.3,20.0]
[1740596077587,0.063,131.32,131.3,240.79859391]
[1740596077788,0.063,131.32,131.31,1.5982581]
[1740596078298,0.063,131.37,131.35,20.0]
[1740596078493,0.063,131.37,131.36,130.09752676]
[1740596078805,22.40972375,131.44,131.39,20.0]
[1740596079000,22.40972375,131.44,131.4,14.86823951]
[1740596079322,67.79593066,131.48,131.4,14.86823951]
[1740596079323,67.79593066,131.48,131.44,1.0]
[1740596079606,22.49238133,131.49,131.45,1.59657966]
[1740596079780,22.49238133,131.49,131.45,221.79657966]
[1740596079985,22.49238133,131.49,131.48,20.0]
[1740596080182,22.49238133,131.49,131.48,285.3]
[1740596080598,22.49238133,131.49,131.48,265.3]
[1740596081384,14.15908133,131.49,131.48,347.7]
[1740596081684,0.063,131.5,131.48,347.7]
[1740596081891,0.063,131.5,131.49,1.59588812]
[1740596082203,0.063,131.51,131.5,1.0]
[1740596082401,1.0,131.61,131.51,1.0]
[1740596082607,1.0,131.61,131.54,20.0]
[1740596082805,1.0,131.61,131.55,1.59530127]
[1740596082998,1.0,131.59,131.55,1.59530127]
[1740596083309,1.0,131.58,131.54,239.2]
[1740596083511,1.0,131.55,131.54,219.2]
[1740596083695,1.0,131.55,131.54,136.8]
[1740596084084,1.0,131.5,131.48,347.7]
[1740596084290,1.0,131.58,131.48,265.3]
[1740596084291,1.0,131.49,131.48,265.3]
[1740596085305,1.0,131.49,131.48,128.5]
[1740596085503,1.0,131.49,131.48,265.3]
[1740596085989,1.0,131.52,131.48,265.3]
[1740596086185,1.0,131.54,131.48,347.7]
[1740596086385,13.18,131.55,131.49,1.59609683]
[1740596086607,1.0,131.58,131.49,220.79609683]
[1740596086890,1.0,131.6,131.52,20.0]
[1740596087101,1.0,131.6,131.53,1.5953879]
[1740596087616,1.0,131.61,131.53,220.7953879]
[1740596087818,1.0,131.61,131.53,219.2]
[1740596087997,1.0,131.61,131.54,1.5952663]
[1740596088407,1.0,131.59,131.54,1.5952663]
[1740596088615,1.0,131.59,131.54,136.8]
[1740596088911,1.0,131.58,131.54,136.8]
[1740596089122,1.0,131.57,131.54,136.8]
[1740596089307,1.063,131.64,131.57,20.0]
[1740596089501,0.063,131.64,131.58,1.59496295]
[1740596089900,1.0,131.63,131.59,128.28]
[1740596090120,1.0,131.53,131.51,136.8]
[1740596090309,1.0,131.55,131.51,136.8]
[1740596090594,1.0,131.52,131.51,136.8]
[1740596091612,1.0,131.49,131.48,219.2]
[1740596091822,1.0,131.5,131.48,219.2]
[1740596092115,1.0,131.49,131.48,136.8]
[1740596092313,1.0,131.51,131.48,136.8]
[1740596092524,1.0,131.5,131.48,136.8]
[1740596092693,1.0,131.48,131.44,347.48]
[1740596092893,1.0,131.47,131.44,347.48]
[1740596093316,1.0,131.48,131.44,347.48]
[1740596093515,1.0,131.46,131.44,347.48]
[1740596093707,1.0,131.45,131.44,347.48]
[1740596094016,1.0,131.48,131.44,266.5420661]
[1740596094323,1.0,131.5,131.44,348.9420661]
[1740596094696,1.0,131.52,131.45,1.59654814]
[1740596094899,1.0,131.53,131.45,220.79654814]
[1740596095093,14.32,131.54,131.45,219.2]
[1740596095321,14.32,131.54,131.46,1.59620483]
[1740596095519,1.0,131.52,131.46,1.59620483]
[1740596095995,1.0,131.51,131.46,1.59620483]
[1740596096195,1.0,131.52,131.46,1.5963971]
[1740596096608,13.32,131.54,131.46,1.5963971]
[1740596096609,14.32,131.54,131.46,1.5963971]
[1740596097014,13.32,131.54,131.46,1.5963971]
[1740596097218,46.66540596,131.59,131.46,220.7963971]
[1740596097219,1.0,131.53,131.46,220.7963971]
[1740596097406,1.0,131.54,131.46,219.2]
[1740596097710,1.0,131.54,131.47,1.59600867]
[1740596097912,1.0,131.55,131.47,220.79600867]
[1740596098104,1.0,131.51,131.47,219.2]
[1740596098415,1.0,131.52,131.47,219.2]
[1740596098618,1.0,131.51,131.47,219.2]
[1740596098811,1.0,131.5,131.47,219.2]
[1740596099017,1.0,131.55,131.5,20.0]
[1740596099198,1.0,131.58,131.51,1.59575199]
[1740596099400,1.0,131.59,131.54,20.0]
[1740596099596,1.0,131.6,131.55,129.85528981]
[1740596099812,1.0,131.6,131.55,349.05528981]
[1740596100028,1.0,131.59,131.55,347.46]
[1740596100231,1.0,131.57,131.55,347.46]
[1740596100400,1.0,131.56,131.55,347.46]
[1740596101007,1.0,131.56,131.55,128.26]
[1740596101212,1.0,131.6,131.55,347.46]
[1740596101400,1.0,131.59,131.56,1.59521352]
[1740596101804,1.0,131.57,131.56,136.8]
[1740596102015,1.0,131.6,131.56,219.2]
[1740596102422,0.063,131.62,131.56,287.67]
[1740596102613,0.063,131.62,131.59,20.0]
[1740596102819,0.063,131.64,131.6,1.5944448]
[1740596103020,0.063,131.64,131.63,20.0]
[1740596103223,1.0,131.73,131.67,20.0]
[1740596103529,1.0,131.75,131.68,129.83355425]
[1740596103714,0.063,131.77,131.68,129.83355425]
[1740596103715,1.0,131.72,131.68,129.83355425]
[1740596103920,1.0,131.76,131.68,348.97055425]
[1740596104123,1.0,131.74,131.68,347.377]
[1740596104319,1.0,131.72,131.68,347.377]
[1740596104524,1.0,131.75,131.68,347.377]
[1740596104719,0.063,131.77,131.68,370.167]
[1740596104917,0.063,131.77,131.73,1.0]
[1740596105235,0.063,131.81,131.74,1.59235355]
[1740596105411,0.063,131.81,131.74,220.72935355]
[1740596105744,0.063,131.81,131.74,219.137]
[1740596106031,0.063,131.81,131.77,20.0]
[1740596106237,0.063,131.87,131.79,12.2748]
[1740596106534,0.063,131.87,131.83,20.0]
[1740596106829,0.063,131.87,131.83,219.137]
[1740596107024,1.063,131.87,131.83,219.137]
[1740596107231,1.0,131.85,131.83,219.137]
[1740596107436,1.0,131.82,131.8,264.917]
[1740596107730,1.0,131.85,131.8,264.917]
[1740596107931,0.063,131.87,131.8,347.317]
[1740596108121,0.063,131.87,131.83,20.0]
[1740596108309,0.063,131.87,131.84,1.59166965]
[1740596108836,0.063,131.87,131.83,156.737]
[1740596108837,1.063,131.87,131.83,156.737]
[1740596109029,1.0,131.84,131.83,136.737]
[1740596109410,1.0,131.81,131.8,264.917]
[1740596109612,1.063,131.87,131.8,264.917]
[1740596109613,1.0,131.84,131.8,264.917]
[1740596109809,0.063,131.87,131.81,1.59251519]
[1740596110033,0.063,131.87,131.84,20.0]
[1740596110218,0.063,131.87,131.85,1.59172387]
[1740596110636,1.063,131.87,131.85,138.32872387]
[1740596110839,1.0,131.86,131.85,136.737]
[1740596111246,1.0,131.82,131.81,133.0806]
[1740596111737,1.0,131.81,131.8,261.2606]
[1740596112252,1.0,131.74,131.73,133.0806]
[1740596112624,1.0,131.73,131.72,128.04]
[1740596112943,2.0,131.73,131.72,128.04]
[1740596113116,1.0,131.69,131.68,133.0806]
[1740596113314,1.0,131.65,131.64,261.1206]
[1740596113938,1.0,131.65,131.64,128.04]
[1740596115545,1.0,131.65,131.64,261.1206]
[1740596116118,15.04,131.7,131.64,261.1206]
[1740596116119,1.0,131.66,131.64,261.1206]
[1740596116553,1.0,131.67,131.64,261.1206]
[1740596116717,1.0,131.66,131.64,261.1206]
[1740596116922,1.0,131.67,131.64,261.1206]
[1740596117152,1.0,131.68,131.65,1.59426513]
[1740596117322,1.0,131.69,131.65,217.07486513]
[1740596117516,1.0,131.69,131.65,215.4806]
[1740596117731,14.04,131.7,131.66,1.59403365]
[1740596117924,1.0,131.71,131.66,217.07463365]
[1740596118129,0.063,131.73,131.69,20.0]
[1740596118339,0.063,131.73,131.7,1.59337888]
[1740596118839,1.0,131.71,131.7,133.0806]
[1740596119160,1.0,131.72,131.7,133.0806]
[1740596119331,1.0,131.71,131.7,215.4806]
[1740596119652,0.063,131.73,131.7,215.4806]
[1740596120050,0.063,131.73,131.71,1.59332343]
[1740596120247,1.0,131.72,131.71,215.4806]
[1740596121351,0.063,131.73,131.64,343.5206]
[1740596121352,1.0,131.68,131.64,343.5206]
[1740596121554,1.0,131.65,131.64,343.5206]
[1740596122446,1.0,131.67,131.64,343.5206]
[1740596122645,1.0,131.69,131.64,343.5206]
[1740596122846,1.0,131.71,131.65,1.59421521]
[1740596123033,1.063,131.73,131.68,20.0]
[1740596123238,1.063,131.73,131.69,1.59351223]
[1740596123239,1.0,131.72,131.69,1.59351223]
[1740596123454,1.0,131.71,131.69,217.07411223]
[1740596123652,1.0,131.71,131.69,215.4806]
[1740596123847,1.0,131.7,131.69,215.4806]
[1740596124441,1.0,131.68,131.64,343.5206]
[1740596124644,1.0,131.65,131.64,343.5206]
[1740596125745,1.0,131.68,131.64,343.5206]
[1740596125959,1.0,131.69,131.65,1.59424305]
[1740596126155,1.0,131.69,131.65,217.07484305]
[1740596126358,1.0,131.66,131.65,215.4806]
[1740596128659,1.0,131.68,131.64,128.04]
[1740596128863,1.0,131.7,131.64,348.83423016]
[1740596129062,1.0,131.71,131.64,347.24]
[1740596129262,1.0,131.71,131.65,1.5937271]
[1740596129474,1.0,131.71,131.65,220.7937271]
[1740596129753,1.0,131.72,131.65,219.2]
[1740596129971,0.063,131.73,131.68,20.0]
[1740596130173,0.063,131.73,131.69,1.59332112]
[1740596130546,0.063,131.73,131.69,220.79332112]
[1740596130750,0.063,131.73,131.72,20.0]
[1740596130944,0.063,131.73,131.72,240.79282157]
[1740596131277,0.063,131.73,131.72,239.2]
[1740596131570,0.063,131.73,131.72,219.2]
[1740596131868,0.063,131.73,131.72,207.792832]
[1740596132370,1.063,131.73,131.72,207.792832]
[1740596132573,1.0,131.67,131.65,219.833732]
[1740596132751,1.0,131.68,131.65,207.792832]
[1740596132957,1.0,131.69,131.66,1.59405287]
[1740596133286,1.0,131.66,131.65,207.792832]
[1740596133950,1.0,131.65,131.64,128.04]
[1740596134272,1.0,131.65,131.64,253.432832]
[1740596134458,1.0,131.66,131.64,253.432832]
[1740596134655,1.0,131.65,131.64,253.432832]
[1740596135060,1.0,131.68,131.64,335.832832]
[1740596135266,1.0,131.72,131.67,20.0]
[1740596135456,1.0,131.71,131.68,1.59353838]
[1740596135779,1.0,131.7,131.68,1.59353838]
[1740596135958,1.0,131.69,131.68,207.792832]
[1740596136357,1.0,131.71,131.68,207.792832]
[1740596136663,1.0,131.72,131.69,1.5936357]
[1740596137003,0.063,131.73,131.69,209.3864677]
[1740596137186,1.063,131.73,131.69,207.792832]
[1740596137359,1.0,131.7,131.69,204.58619267]
[1740596137680,1.0,131.71,131.69,204.58619267]
[1740596137886,0.063,131.73,131.7,0.41012279]
[1740596138054,0.063,131.73,131.7,227.78631546]
[1740596138253,0.063,131.73,131.7,204.58619267]
[1740596138777,0.063,131.73,131.72,20.0]
[1740596139085,1.0,131.79,131.73,122.12319267]
[1740596139283,1.0,131.82,131.76,20.0]
[1740596139585,1.0,131.82,131.77,128.46700255]
[1740596139794,1.0,131.8,131.77,332.99019522]
[1740596139965,1.063,131.81,131.77,332.58319267]
[1740596140171,0.063,131.81,131.8,20.0]
[1740596140485,0.063,131.81,131.8,224.92938663]
[1740596140682,1.063,131.81,131.8,204.52319267]
[1740596140890,0.063,131.81,131.8,204.52319267]
[1740596141094,0.063,131.87,131.83,20.0]
[1740596141276,0.063,131.87,131.84,0.40504088]
[1740596141471,0.063,131.87,131.86,20.0]
[1740596141789,0.063,131.87,131.86,224.92786694]
[1740596142078,0.063,131.87,131.86,224.52319267]
[1740596143174,1.063,131.87,131.86,204.52319267]
[1740596143371,1.063,131.87,131.86,122.12319267]
[1740596143767,1.0,131.8,131.77,345.47349267]
[1740596143967,1.0,131.79,131.77,345.47349267]
[1740596144289,1.0,131.79,131.77,332.58319267]
[1740596144463,1.0,131.78,131.77,332.58319267]
[1740596144668,1.0,131.79,131.77,332.58319267]
[1740596144867,1.0,131.8,131.78,0.40774116]
[1740596145070,1.0,131.8,131.78,204.93093383]
[1740596145379,1.0,131.79,131.78,204.52319267]
[1740596145968,1.0,131.8,131.78,204.52319267]
[1740596146173,58.46265917,131.86,131.79,0.40742206]
[1740596146174,1.0,131.82,131.79,0.40742206]
[1740596146397,1.0,131.8,131.79,204.93061473]
[1740596146564,1.0,131.8,131.79,204.52319267]
[1740596147100,1.0,131.8,131.79,122.12319267]
[1740596147670,1.0,131.8,131.77,250.18319267]
[1740596147871,1.0,131.78,131.77,250.18319267]
[1740596148115,1.0,131.78,131.77,332.58319267]
[1740596149201,37.58525129,131.83,131.77,332.58319267]
[1740596149202,1.0,131.79,131.77,332.58319267]
[1740596149372,1.0,131.8,131.78,0.40798508]
[1740596149570,1.0,131.79,131.78,204.93117775]
[1740596149794,1.0,131.79,131.78,204.52319267]
[1740596150591,1.0,131.79,131.78,122.12319267]
[1740596150793,1.0,131.78,131.77,128.06]
[1740596151182,14.94,131.78,131.77,128.06]
[1740596151370,15.94,131.78,131.77,119.7267]
[1740596151671,15.94,131.78,131.69,332.48319267]
[1740596151672,1.0,131.7,131.69,332.48319267]
[1740596152475,1.0,131.7,131.69,127.96]
[1740596152875,1.0,131.7,131.69,127.99]
[1740596153078,15.94,131.7,131.69,0.03]
[1740596153391,2.0,131.66,131.65,0.03]
[1740596154309,3.0,131.66,131.65,0.03]
[1740596154806,1.0,131.62,131.61,249.92568665]
[1740596155008,1.0,131.62,131.61,127.80249398]
[1740596155820,15.96,131.62,131.61,127.80249398]
[1740596156020,15.96,131.62,131.61,122.19804358]
[1740596156225,1.0,131.55,131.54,204.52319267]
[1740596157506,1.0,131.54,131.53,264.84]
[1740596158312,1.0,131.54,131.53,128.04]
[1740596158502,13.96,131.54,131.53,128.04]
[1740596159036,2.0,131.53,131.52,19.47839265]
[1740596159326,0.1,131.53,131.52,5.28957809]
[1740596159541,0.1,131.53,131.52,2.36182081]
[1740596159710,0.1,131.52,131.51,0.03]
[1740596161608,12.96,131.54,131.5,131.33397368]
[1740596161609,0.1,131.51,131.5,131.33397368]
[1740596161809,0.1,131.51,131.5,128.48870031]
[1740596162008,0.1,131.51,131.5,125.50116327]
[1740596162210,0.1,131.54,131.5,204.91362623]
[1740596162405,0.1,131.51,131.5,204.91362623]
[1740596162816,0.1,131.51,131.46,1.4620661]
[1740596162817,0.1,131.47,131.46,123.97569233]
[1740596163017,0.1,131.49,131.46,206.37569233]
[1740596163214,0.1,131.47,131.46,206.37569233]
[1740596163422,0.1,131.47,131.46,1.4620661]
[1740596163915,1.1,131.47,131.46,123.97569233]
[1740596164128,0.1,131.47,131.46,1.4620661]
[1740596164324,0.1,131.47,131.46,206.37569233]
[1740596164839,0.1,131.47,131.46,1.4620661]
[1740596165036,0.1,131.47,131.46,206.37569233]
[1740596165335,0.1,131.51,131.46,206.40569233]
[1740596165513,0.1,131.5,131.46,206.40569233]
[1740596165709,0.1,131.51,131.46,206.40569233]
[1740596165926,0.1,131.49,131.46,206.40569233]
[1740596166339,0.1,131.49,131.47,0.41677269]
[1740596166537,13.98,131.57,131.47,205.33039892]
[1740596166538,0.1,131.52,131.47,205.33039892]
[1740596166836,0.1,131.53,131.47,205.81362623]
[1740596167142,0.1,131.54,131.5,20.0]
[1740596167311,0.1,131.53,131.51,0.41513876]
[1740596167513,0.1,131.51,131.5,204.91362623]
[1740596167709,0.1,131.56,131.5,204.91362623]
[1740596168036,0.1,131.52,131.5,204.91362623]
[1740596168221,0.1,131.53,131.51,0.41587547]
[1740596168636,50.79152818,131.64,131.51,0.41587547]
[1740596168637,0.1,131.55,131.51,0.41587547]
[1740596168842,0.1,131.55,131.51,228.2195017]
[1740596169023,0.1,131.53,131.51,204.91362623]
[1740596169221,0.1,131.52,131.51,204.91362623]
[1740596169734,0.1,131.47,131.46,206.40569233]
[1740596170733,13.96,131.52,131.46,206.40569233]
[1740596170734,0.1,131.48,131.46,206.40569233]
[1740596171025,0.1,131.49,131.47,0.41697193]
[1740596171216,0.1,131.49,131.47,205.33059816]
[1740596171433,0.1,131.48,131.47,204.91362623]
[1740596171926,0.1,131.47,131.46,124.00569233]
[1740596172126,2.1,131.47,131.46,1.4920661]
[1740596172435,0.1,131.39,131.38,204.91362623]
[1740596173039,0.1,131.39,131.38,122.51362623]
[1740596173714,0.1,131.43,131.38,204.91362623]
[1740596174047,0.1,131.41,131.39,0.4186266]
[1740596174218,0.1,131.43,131.39,0.4186266]
[1740596174560,0.1,131.4,131.39,204.91362623]
[1740596176641,0.1,131.42,131.39,204.91362623]
[1740596176837,0.1,131.42,131.4,0.41885199]
[1740596177034,0.1,131.44,131.4,0.41885199]
[1740596177339,13.98,131.49,131.4,0.41885199]
[1740596177340,0.1,131.45,131.4,206.33247822]
[1740596177642,0.1,131.43,131.4,204.91362623]
[1740596177842,0.1,131.41,131.4,198.26617705]
[1740596178044,0.1,131.41,131.4,194.94245246]
[1740596178253,0.1,131.41,131.4,191.61872787]
[1740596178455,0.1,131.41,131.4,188.29500328]
[1740596178653,0.1,131.41,131.4,185.07096709]
[1740596178972,0.1,131.39,131.38,0.03]
[1740596179633,2.1,131.39,131.38,0.03]
[1740596179836,22.1,131.39,131.38,0.03]
[1740596180036,22.1,131.39,131.35,128.24]
[1740596180242,0.1,131.33,131.32,0.03]
[1740596181336,38.67829408,131.33,131.32,99.4769309]
[1740596181527,38.67829408,131.33,131.32,92.5131922]
[1740596181744,7.8077,131.43,131.32,92.5131922]
[1740596181745,38.73143575,131.34,131.32,171.62349036]
[1740596181951,38.97230459,131.36,131.33,0.42112172]
[1740596182152,38.73143575,131.34,131.33,168.75491024]
[1740596182340,38.3880994,131.35,131.33,168.33378852]
[1740596182538,0.1,131.37,131.33,107.1957685]
[1740596182848,0.1,131.34,131.33,107.1957685]
[1740596183036,0.1,131.34,131.33,106.1957685]
[1740596183539,0.1,131.32,131.31,23.7957685]
[1740596183742,0.1,131.29,131.28,82.4]
[1740596184049,1.0,131.35,131.25,12.9255]
[1740596184050,0.1,131.26,131.25,219.23]
[1740596184865,0.1,131.31,131.25,220.23]
[1740596185239,0.1,131.31,131.28,21.0]
[1740596185434,0.1,131.33,131.29,128.34]
[1740596185738,0.1,131.35,131.29,347.54]
[1740596185953,0.1,131.33,131.29,347.54]
[1740596186158,0.1,131.36,131.32,20.0]
[1740596186370,0.1,131.38,131.32,221.1]
[1740596186571,0.1,131.38,131.32,220.2]
[1740596186775,0.1,131.38,131.32,221.1]
[1740596187247,0.1,131.39,131.33,0.9]
[1740596187449,0.1,131.4,131.36,20.0]
[1740596187649,0.1,131.43,131.37,1.9]
[1740596187851,0.1,131.43,131.37,220.2]
[1740596188155,0.1,131.42,131.37,219.2]
[1740596188357,0.1,131.39,131.37,219.2]
[1740596188536,0.1,131.38,131.37,219.2]
[1740596188738,0.1,131.38,131.37,212.11810334]
[1740596189273,0.1,131.41,131.37,212.11810334]
[1740596189597,0.1,131.44,131.4,20.0]
[1740596189767,0.1,131.44,131.41,128.36]
[1740596190073,0.1,131.42,131.41,128.36]
[1740596190250,0.1,131.42,131.41,250.99620668]
[1740596190645,2.0,131.5,131.41,333.39620668]
[1740596190646,0.1,131.45,131.41,333.39620668]
[1740596190841,0.1,131.46,131.41,334.39620668]
[1740596191347,0.1,131.48,131.42,12.2075]
[1740596191546,0.1,131.51,131.45,21.0]
[1740596191745,0.1,131.51,131.47,1.0]
[1740596191943,0.1,131.53,131.47,206.03620668]
[1740596192160,0.1,131.52,131.47,206.03620668]
[1740596192463,0.1,131.52,131.47,205.03620668]
[1740596192673,0.163,131.54,131.48,0.9]
[1740596192870,0.063,131.54,131.5,20.0]
[1740596193072,0.063,131.54,131.5,225.93620668]
[1740596193254,0.063,131.54,131.5,225.03620668]
[1740596193789,0.1,131.58,131.52,0.9]
[1740596193985,0.1,131.58,131.53,128.34]
[1740596194184,0.1,131.61,131.54,0.9]
[1740596194390,0.1,131.61,131.54,206.93620668]
[1740596194582,0.1,131.6,131.54,205.03620668]
[1740596195100,0.1,131.55,131.54,205.03620668]
[1740596195306,0.1,131.55,131.54,122.63620668]
[1740596195667,0.1,131.54,131.53,128.34]
[1740596195871,0.1,131.54,131.47,122.63620668]
[1740596195872,0.1,131.48,131.47,122.63620668]
[1740596196100,0.1,131.5,131.47,122.63620668]
[1740596196570,0.1,131.51,131.47,122.63620668]
[1740596196770,0.1,131.51,131.47,205.03620668]
[1740596196991,0.1,131.5,131.47,205.03620668]
[1740596197167,0.1,131.48,131.47,205.03620668]
[1740596197371,0.1,131.46,131.45,250.91620668]
[1740596198486,0.1,131.46,131.45,128.28]
[1740596198985,1.1,131.46,131.45,128.28]
[1740596199188,0.1,131.42,131.41,122.63620668]
[1740596199897,0.1,131.42,131.32,136.8]
[1740596199898,20.0,131.39,131.32,136.8]
[1740596200101,0.1,131.33,131.32,136.8]
[1740596200588,0.1,131.33,131.28,82.43]
[1740596200589,0.1,131.3,131.28,219.23]
[1740596200794,0.1,131.29,131.28,219.23]
[1740596201297,12.96,131.34,131.28,219.23]
[1740596201298,0.1,131.3,131.28,219.23]
[1740596201972,12.96,131.34,131.28,219.23]
[1740596201973,0.1,131.31,131.28,219.23]
[1740596202275,0.1,131.3,131.28,219.23]
[1740596202676,0.1,131.29,131.28,219.23]
[1740596203999,0.1,131.31,131.28,219.23]
[1740596204197,7.08513721,131.29,131.28,219.23]
[1740596204378,7.08513721,131.29,131.28,200.09443553]
[1740596204574,0.1,131.33,131.28,200.09443553]
[1740596204575,0.1,131.35,131.29,129.71486279]
[1740596204785,0.1,131.35,131.29,193.00929832]
[1740596204986,0.1,131.34,131.29,193.00929832]
[1740596205173,0.1,131.35,131.29,193.00929832]
[1740596205387,0.1,131.34,131.29,193.00929832]
[1740596205617,0.1,131.37,131.32,20.0]
[1740596205899,0.1,131.36,131.32,63.29443553]
[1740596206110,0.1,131.37,131.32,193.00929832]
[1740596206310,0.1,131.39,131.32,194.00929832]
[1740596206477,13.08,131.41,131.33,0.9]
[1740596206679,0.1,131.4,131.32,239.76929832]
[1740596206887,0.1,131.38,131.35,20.0]
[1740596207087,0.1,131.36,131.35,193.00929832]
[1740596208091,0.1,131.31,131.3,193.00929832]
[1740596209089,0.1,131.33,131.3,193.00929832]
[1740596209291,0.1,131.32,131.3,193.00929832]
[1740596209487,0.1,131.31,131.3,193.00929832]
[1740596209999,0.1,131.34,131.3,193.00929832]
[1740596210298,82.9,131.44,131.3,193.00929832]
[1740596210299,0.1,131.32,131.3,193.00929832]
[1740596210505,0.1,131.34,131.3,193.00929832]
[1740596211210,0.1,131.31,131.3,193.00929832]
[1740596211417,0.1,131.28,131.25,321.31929832]
[1740596212207,0.1,131.26,131.25,321.31929832]
[1740596214183,0.1,131.26,131.25,128.31]
[1740596215201,12.98,131.28,131.25,0.03]
[1740596216001,3.16953245,131.27,131.2,2.538478]
[1740596216207,1.17425138,131.26,131.2,2.538478]
[1740596216503,1.17425138,131.26,131.19,0.03]
[1740596216504,1.99528107,131.25,131.19,0.03]
[1740596216895,14.15425138,131.24,131.19,0.03]
[1740596217410,12.98,131.24,131.2,1.0]
[1740596217618,12.98,131.24,131.19,131.74486279]
[1740596217913,12.98,131.24,131.2,1.0]
[1740596218116,12.98,131.24,131.23,1.0]
[1740596218316,12.98,131.24,131.23,129.71486279]
[1740596218613,12.98,131.24,131.2,2.0]
[1740596218800,12.98,131.24,131.2,131.71486279]
[1740596219113,12.98,131.3,131.23,1.0]
[1740596219650,12.98,131.3,131.24,1.0]
[1740596219913,12.98,131.34,131.28,2.0]
[1740596220205,12.98,131.34,131.28,129.71486279]
[1740596220598,12.98,131.35,131.28,2.0]
[1740596220795,20.0,131.32,131.25,130.71486279]
[1740596220990,14.15425138,131.35,131.25,129.71486279]
[1740596221405,20.0,131.32,131.25,129.71486279]
[1740596221595,20.0,131.32,131.25,130.71486279]
[1740596221781,14.15425138,131.35,131.26,2.0]
[1740596222105,14.15425138,131.35,131.28,1.0]
[1740596222286,20.0,131.32,131.26,130.71486279]
[1740596222481,1.17425138,131.35,131.28,1.0]
[1740596222707,8.2356,131.42,131.31,2.0]
[1740596223004,1.0,131.37,131.31,124.24631318]
[1740596223189,1.0,131.39,131.32,22.89]
[1740596223415,14.15425138,131.42,131.32,316.42270368]
[1740596223599,12.98,131.42,131.33,0.4007466]
[1740596223995,2.0,131.48,131.33,187.94149531]
[1740596224189,12.98,131.49,131.37,12.0131]
[1740596224524,12.98,131.49,131.38,0.39902884]
[1740596224813,0.063,131.54,131.41,20.0]
[1740596225105,0.063,131.54,131.42,1.39734173]
[1740596225407,0.063,131.54,131.43,128.44]
[1740596225613,0.063,131.54,131.44,0.39658008]
[1740596225817,0.063,131.54,131.44,133.23689326]
[1740596226114,1.0,131.51,131.44,124.24631318]